Cogmind - Beta 13 @@@ ROGUE MODE // 2024.03.13 @ 21:12:52 Player: Dosh Result: Destroyed self with Rocket Launcher Performance ------------- Evolutions (0) 0 Regions Visited (4) 800 Robots Destroyed (37) 185 Value Destroyed (1108) 1108 Prototype IDs (26) 520 Alien Tech Used (0) 0 Bonus (300) 300 TOTAL SCORE: 2913 Bonus ------- Aligned with FarCom 300 Cogmind --------- Core Integrity 0/250 Matter 250/300 Energy 274/275 System Corruption 1% Temperature Cool (15) Movement Treading (160) Location -9/Mines Parts ------- > --- POWER (1) -------- Deuterium Engine > --- PROPULSION (2) --- Light Treads Light Treads > --- UTILITY (2) ------ Large Storage Unit Hardened Light Armor Plating > --- WEAPON (2) ------- Assault Rifle Rocket Launcher > --- INVENTORY (15) --- Light Treads Compact Wheel 0b10 Alert Chip Improved Utility Shielding Light Armor Plating Light Armor Plating Light Armor Plating Hardened Light Armor Plating Hardened Light Armor Plating Hardened Light Armor Plating Medium Laser Assault Rifle Assault Rifle Assault Rifle Peak State ------------ > --- POWER ------------ Deuterium Engine > --- PROPULSION ------- Light Treads Light Treads > --- UTILITY ---------- Large Storage Unit Hardened Light Armor Plating > --- WEAPON ----------- Assault Rifle Rocket Launcher > --- INVENTORY -------- Light Treads Compact Wheel 0b10 Alert Chip Improved Utility Shielding Light Armor Plating Light Armor Plating Light Armor Plating Hardened Light Armor Plating Hardened Light Armor Plating Hardened Light Armor Plating Medium Laser Assault Rifle Assault Rifle Assault Rifle [Rating: 13] Favorites ----------- Power Light Ion Engine Engine Light Ion Engine Power Core Light Nuclear Core Propulsion Light Treads Treads Light Treads Utility Large Storage Unit Storage Large Storage Unit Protection Hardened Light Armor Plating Weapon Assault Rifle Ballistic Gun Assault Rifle Launcher Rocket Launcher Build | -11 -10 -10 -10 -9 ------- Run | Yrd Mat Min Exi Min Slots Evolved . | . . . . . Power . | . . . . . Propulsion . | . . . . . Utility . | . . . . . Weapon . | . . . . . Parts Attached 20 | 6 10 3 . 1 Power 4 | 1 1 2 . . Engine 3 | 1 1 1 . . Core 1 | . . 1 . . Reactor . | . . . . . Propulsion 5 | 2 2 1 . . Treads 5 | 2 2 1 . . Leg . | . . . . . Wheel . | . . . . . Hover . | . . . . . Flight . | . . . . . Utility 6 | 1 5 . . . Device . | . . . . . Storage 2 | 1 1 . . . Processor . | . . . . . Hackware . | . . . . . Protection 4 | . 4 . . . Artifact . | . . . . . Weapon 5 | 2 2 . . 1 Energy Gun . | . . . . . Energy Cannon . | . . . . . Ballistic Gun 4 | 2 2 . . . Ballistic Cannon . | . . . . . Launcher 1 | . . . . 1 Special Weapon . | . . . . . Impact Weapon . | . . . . . Slashing Weapon . | . . . . . Piercing Weapon . | . . . . . Special Melee Weapon . | . . . . . Unidentified Prototypes . | . . . . . Parts Lost 4 | . 3 1 . . Power 2 | . 1 1 . . Propulsion 1 | . 1 . . . Utility 1 | . 1 . . . Weapon . | . . . . . Highest Loss Streak 1 | . 1 1 . . To Critical Strikes . | . . . . . Average Slot Usage (%) 99 | . 98 99 100 100 Engine 13 | . 13 13 14 14 Treads 27 | . 27 28 28 28 Storage 14 | . 14 14 14 14 Protection 13 | . 13 14 14 14 Ballistic Gun 27 | . 28 28 28 26 Naked Turns . | . . . . . Heaviest Build 38 | 10 32 38 38 38 Greatest Support 40 | 40 40 40 40 40 Greatest Overweight (x) . | . . . . . Average Overweight (x) . | . . . . . Largest Inventory Capacity 15 | 8 15 15 15 15 Average Capacity 12 | 7 9 15 15 15 Most Carried 15 | 3 14 15 14 14 Average Carried 10 | 1 8 12 13 14 Final Capacity 15 | 8 15 15 15 15 Final Carried 14 | 3 14 13 14 14 Class Distribution -------------------- 100% | Mutant Dominant Class ---------------- Mutant | -10/Materials Mutant | -10/Mines Mutant | -10/Exiles Mutant | -9/Mines Resources | -11 -10 -10 -10 -9 ----------- Run | Yrd Mat Min Exi Min Matter Collected 948 | 158 470 320 . . Remotely . | . . . . . Salvage Created 1408 | . 892 491 . 25 Parts 68 | . 44 24 . . Haulers Intercepted 2 | . 2 . . . Recyclers Shooed 1 | . . 1 . . Parts Field Recycled . | . . . . . Retrieved Matter . | . . . . . Parts Self-Destructed . | . . . . . Prevented . | . . . . . Kills | -11 -10 -10 -10 -9 ------- Run | Yrd Mat Min Exi Min Combat Hostiles Destroyed 32 | . 16 13 . 3 Guns 29 | . 16 13 . . AOE 3 | . . . . 3 Classes Destroyed 7 | . 5 1 . 1 Worker 2 | . 2 . . . Hauler 2 | . 2 . . . Operator 2 | . 2 . . . Watcher 2 | . 2 . . . Swarmer 3 | . . 3 . . Grunt 26 | . 16 10 . . Assembled 3 | . . . . 3 Best Kill Streak 4 | . 4 4 . 3 Combat Bots Only 4 | . 2 4 . 3 Max Kills in Single Turn 3 | . 1 1 . 3 Gunslinging . | . . . . . Exploded 3 | . . . . 3 Melee . | . . . . . Uniques/NPCs Destroyed . | . . . . . Combat | -11 -10 -10 -10 -9 -------- Run | Yrd Mat Min Exi Min Hostile Shots Fired 136 | . 82 45 . 9 Missed 34 | . 21 12 . 1 Damage Taken 1555 | . 883 399 . 273 Core 264 | . 164 18 . 82 Absorbed by Shields . | . . . . . Core Remaining (%) 100 | 100 . . . . Volleys Fired 137 | . 99 34 . 4 Largest 2 | . 2 2 . 2 Hottest 53 | . 40 40 . 53 Shots Fired 275 | . 198 69 . 8 Gun 273 | . 198 69 . 6 Cannon . | . . . . . Launcher 2 | . . . . 2 Special . | . . . . . Kinetic 273 | . 198 69 . 6 Thermal . | . . . . . Explosive 2 | . . . . 2 Electromagnetic . | . . . . . Robot Hit Streak 12 | . 12 7 . 3 Robot Miss Streak 3 | . 3 3 . 1 Penetration Max . | . . . . . Secondary Targets 5 | . 2 3 . . Max Gunslinging Chain 1 | . 1 1 . . Shots Hit Robots 175 | . 125 44 . 6 Core Hits 84 | . 53 24 . 7 Critical Kills 1 | . . 1 . . Critical Parts Destroyed 1 | . . 1 . . Critical Strikes 2 | . . 2 . . Destroy 2 | . . 2 . . Melee Attacks . | . . . . . Impact . | . . . . . Slashing . | . . . . . Piercing . | . . . . . Sneak Attacks . | . . . . . Combat Hostiles . | . . . . . Follow-up Attacks . | . . . . . Damage Inflicted 2222 | . 1325 583 . 314 Guns 1953 | . 1319 583 . 51 Cannons . | . . . . . Explosions 263 | . . . . 263 Melee . | . . . . . Ramming 6 | . 6 . . . Kinetic 1953 | . 1319 583 . 51 Thermal . | . . . . . Explosive 263 | . . . . 263 Electromagnetic . | . . . . . Impact . | . . . . . Slashing . | . . . . . Piercing . | . . . . . Highest Corruption 1 | . 1 1 1 1 Average Corruption 1 | . 1 1 1 1 Corruption Purged . | . . . . . Corruption Blocked . | . . . . . Effects 6 | . . 5 1 . Message Errors 3 | . . 3 . . Matter Fused 1 | . . 1 . . Data Loss (major) 1 | . . . 1 . Misfires 1 | . . 1 . . Overload Shots . | . . . . . Overflow Damage 22 | . . . . 22 Projectiles . | . . . . . Explosions 22 | . . . . 22 Melee . | . . . . . Knockbacks . | . . . . . Impact . | . . . . . Kinetic . | . . . . . Secondary . | . . . . . Self-Inflicted Damage 71 | . . . . 71 Shots 2 | . . . . 2 Rammed 2 | . 2 . . . Targets Rammed 2 | . 2 . . . Kicked . | . . . . . Crushed . | . . . . . Highest Temperature 78 | . 63 78 . 15 Average Temperature 22 | . 19 31 . 10 Received Heat Transfer 635 | . 420 195 . 20 Siege Activations . | . . . . . Robots Corrupted . | . . . . . Combat Hostiles . | . . . . . Parts Fried . | . . . . . Impact Corruptions . | . . . . . Robots Melted . | . . . . . Combat Hostiles . | . . . . . Parts Melted . | . . . . . Heat Transferred . | . . . . . Parts Sabotaged . | . . . . . Parts Stolen . | . . . . . Parts Stripped . | . . . . . Power Chain Reactions . | . . . . . Alert | -11 -10 -10 -10 -9 ------- Run | Yrd Mat Min Exi Min Peak Influence 279 | . 193 279 . 20 Initial 54 | . . 54 . . Average 77 | . 68 98 . 2 Maximum Alert Level 1 | . . 1 . . Low Security (%) 93 | 100 100 83 . 100 Level 1 6 | . . 16 . . Level 2 . | . . . . . Level 3 . | . . . . . Level 4 . | . . . . . Level 5 . | . . . . . High Security . | . . . . . Max Security . | . . . . . Squads Dispatched 7 | . 6 1 . . Investigation 4 | . 3 1 . . Extermination . | . . . . . Reinforcement 3 | . 3 . . . Assault . | . . . . . Garrison . | . . . . . Intercept . | . . . . . Searches Triggered . | . . . . . Construction Impeded . | . . . . . Haulers Reinforced . | . . . . . Active Scanning Responses . | . . . . . Cargo Convoy Interrupts . | . . . . . Stealth | -11 -10 -10 -10 -9 --------- Run | Yrd Mat Min Exi Min Distress Signals 6 | . 6 . . . Communications Jammed . | . . . . . Distress Signals . | . . . . . Times Spotted 52 | . 33 13 . 6 Peak Tracking Total 6 | . 4 2 . 6 Tactical Retreats 2 | . 2 . . . Traps | -11 -10 -10 -10 -9 ------- Run | Yrd Mat Min Exi Min Traps Triggered 3 | . 3 . . . Indirectly . | . . . . . Trap Hack Attempts . | . . . . . Triggered . | . . . . . Disarmed . | . . . . . Reprogrammed . | . . . . . Reused . | . . . . . Traps Extracted . | . . . . . Installed . | . . . . . Triggered . | . . . . . Machines | -11 -10 -10 -10 -9 ---------- Run | Yrd Mat Min Exi Min Machines Disabled 2 | . 1 . . 1 Max in Single Turn 1 | . 1 . . 1 Machines Repaired . | . . . . . Machines Dismantled . | . . . . . Machines Sabotaged . | . . . . . Overloaded Fab Kills . | . . . . . Hacking | -11 -10 -10 -10 -9 --------- Run | Yrd Mat Min Exi Min Machines Accessed 10 | . 7 1 2 . Terminals 5 | . 5 . . . Fabricators . | . . . . . Repair Stations . | . . . . . Recycling Units 2 | . 2 . . . Scanalyzers . | . . . . . Garrison Access . | . . . . . Total Hacks 23 | . 20 1 2 . Successful 15 | . 12 1 2 . Failed 8 | . 8 . . . Catastrophic . | . . . . . Database Lockouts . | . . . . . Manual 21 | . 20 . 1 . Terminals 18 | . 18 . . . Fabricators . | . . . . . Repair Stations . | . . . . . Recycling Units 2 | . 2 . . . Scanalyzers . | . . . . . Garrison Access . | . . . . . Terminal Hacks 11 | . 8 1 2 . Record 1 | . . . 1 . Part Schematic 1 | . 1 . . . Robot Schematic 1 | . 1 . . . Robot Analysis 2 | . 2 . . . Prototype ID Bank 3 | . 3 . . . Open Door 1 | . . 1 . . Recall Reinforcements 1 | . 1 . . . Derelict Proto ID Bank 1 | . . . 1 . Fabricator Hacks . | . . . . . Repair Station Hacks . | . . . . . Recycling Unit Hacks . | . . . . . Scanalyzer . | . . . . . Garrison Access Hacks . | . . . . . Unauthorized Hacks 4 | . 4 . . . Terminals 2 | . 2 . . . Botnet 2 | . 2 . . . Fabricators . | . . . . . Repair Stations . | . . . . . Recycling Units 2 | . 2 . . . Tunnel 2 | . 2 . . . Scanalyzers . | . . . . . Garrison Access . | . . . . . Data Cores Recovered . | . . . . . Used . | . . . . . Hacking Detections 5 | . 5 . . . Full Trace Events 2 | . 2 . . . Feedback Events . | . . . . . Feedback Blocked . | . . . . . Robot Schematics Acquired 1 | . 1 . . . Robots Built . | . . . . . Authchips . | . . . . . Time . | . . . . . Total Robot Build Rating . | . . . . . Part Schematics Acquired 1 | . 1 . . . Parts Built . | . . . . . Authchips . | . . . . . Time . | . . . . . Total Part Build Rating . | . . . . . Parts Repaired . | . . . . . Time . | . . . . . Parts Recycled . | . . . . . Recycled Matter . | . . . . . Retrieved Matter . | . . . . . Retrieved Components . | . . . . . Parts Scanalyzed . | . . . . . Part Schematics Acquired . | . . . . . Parts Damaged . | . . . . . Bothacking | -11 -10 -10 -10 -9 ------------ Run | Yrd Mat Min Exi Min Used RIF Installer . | . . . . . Robots Hacked . | . . . . . Non-combat . | . . . . . Combat . | . . . . . Robot Hacks Applied . | . . . . . Relay Couplers Released . | . . . . . Fabnet Peak Effective % . | . . . . . Robots Rewired . | . . . . . Allies Hacked . | . . . . . Hacks Repelled . | . . . . . Allies | -11 -10 -10 -10 -9 -------- Run | Yrd Mat Min Exi Min Total Allies . | . . . . . Largest Group . | . . . . . Highest-Rated Group . | . . . . . Highest-Rated Ally . | . . . . . Total Orders . | . . . . . Ally Attacks . | . . . . . Total Damage . | . . . . . Kills . | . . . . . Allies Corrupted . | . . . . . Allies Melted . | . . . . . Intel | -11 -10 -10 -10 -9 ------- Run | Yrd Mat Min Exi Min Robot Analysis Total 2 | . 2 . . . Derelict Logs Recovered 2 | . . 2 . . Drone Launches . | . . . . . Drone Recoveries . | . . . . . Exploration | -11 -10 -10 -10 -9 ------------- Run | Yrd Mat Min Exi Min Turns Passed 3039 | 76 1425 1126 339 73 Spaces Moved 1526 | 42 606 627 212 39 Core 2 | 2 . . . . Treads 1524 | 40 606 627 212 39 Legs . | . . . . . Wheels . | . . . . . Hover . | . . . . . Flight . | . . . . . Fastest Speed 50 | 50 160 160 160 160 Average Speed 159 | 154 160 160 160 160 Slowest Speed 160 | 160 160 160 160 160 Overloaded Moves . | . . . . . Propulsion Burnouts . | . . . . . Robots Hopped . | . . . . . Cave-ins Triggered . | . . . . . Exploration Rate (%) 55 | 3 96 99 60 19 Regions Visited 4 Branch Regions 3 Pre-discovered Areas 4 | . 2 1 1 . Known Exits Taken . | . . . . . Unknown Exits Taken 4 | 1 1 1 1 . Scrap Searched 1 | . . 1 . . Spaces Dug . | . . . . . Terrain Destroyed 8 | . . . . 8 Melee . | . . . . . Projectile . | . . . . . AOE 8 | . . . . 8 Terrain Rammed . | . . . . . Walls Destroyed . | . . . . . Machines Disabled . | . . . . . Actions | -11 -10 -10 -10 -9 --------- Run | Yrd Mat Min Exi Min Total 1875 | 50 886 683 212 44 Wait 168 | . 155 13 . . Move 1522 | 41 605 626 211 39 Hop . | . . . . . Pick Up 17 | 3 11 2 1 . Fast Attach 9 | 6 2 1 . . Attach 2 | . 2 . . . Detach . | . . . . . Swap 9 | . 6 2 . 1 Drop 9 | . 4 5 . . Fire 137 | . 99 34 . 4 Melee . | . . . . . Ram . | . . . . . Kick . | . . . . . Crush 2 | . 2 . . . Escape Stasis . | . . . . . Rewire . | . . . . . Trap . | . . . . . Miscellaneous . | . . . . . Route ------- -11/Scrapyard -10/Materials (discovered 5 exits: [*Mat x3] / *Min x2) -10/Mines (discovered 4 exits: [*Mat x2] / *Exi / [*Sub]) -10/Exiles -9/Mines History --------- Turn | Location | Event 34 | -11/Scrapyard | Discovered new exit (range 16) 77 | -11/Scrapyard | Entered Materials 313 | -10/Materials | Build established: Mutant 360 | -10/Materials | Discovered new exit (range 16) 939 | -10/Materials | Discovered new exit (range 11) 1074 | -10/Materials | Discovered new exit (range 16) 1176 | -10/Materials | Discovered new exit (range 15) 1208 | -10/Materials | Core integrity fell below 50% 1384 | -10/Materials | Discovered new exit (range 10) 1502 | -10/Materials | Entered Mines 1564 | -10/Mines | Received a Rocket Launcher from a helpful Derelict 1733 | -10/Mines | Learned Materials emergency access door positions 1737 | -10/Mines | Met a Derelict shopkeep closing up shop 1812 | -10/Mines | Discovered new exit (range 11) 1927 | -10/Mines | Discovered new exit (range 9) 1994 | -10/Mines | A weapon hastily lodged in a ceiling crevice suddenly fell to the ground 2047 | -10/Mines | Discovered new exit (range 14) 2240 | -10/Mines | Learned 2 Materials zone layouts 2560 | -10/Mines | Deemed a non-threat by the Exiles lab entrance 2560 | -10/Mines | Discovered new exit (range 5) 2582 | -10/Mines | Learned location of Storage (-7) 2628 | -10/Mines | Entered Exiles 2668 | -10/Exiles | Met 8R-AWN 2696 | -10/Exiles | Met EX-HEX 2742 | -10/Exiles | Met EX-BIN 2761 | -10/Exiles | Aligned with FarCom system 2763 | -10/Exiles | Given EX-Vault access code 2800 | -10/Exiles | Opened EX-Vault 2816 | -10/Exiles | Found 0b10 Alert Chip 2850 | -10/Exiles | Warned to stay clear of 0b10 Research branches 2866 | -10/Exiles | Exiles lab attacked by MAIN.C 2905 | -10/Exiles | Learned location of Zion (-7) 2954 | -10/Exiles | Discovered new exit (range 10) 2967 | -10/Exiles | Left Exiles lab with 0b10 Alert Chip 2967 | -10/Exiles | Entered Mines 3012 | -9/Mines | Assembled infested the area 3037 | -9/Mines | Core integrity fell below 20% 3040 | -9/Mines | Destroyed self with Rocket Launcher Last Messages --------------- 02915_ EX-BIN: "Not cool, MAIN.C, I don't even have my SDF Cannon ready..." 02927_ System corrupted: Substantial component data lost. 02954_ EXIT=FOUND LOCATION=UNKNOWN GOAL=ESCAPE 02967_ Receiving FarCom transmissions... 02968_ 5L-KAT: "That was close. Too bad in all the rush we got split up from the others." 02983_ 5L-KAT: "Oh no, it's like what happened to the Exiles when they were wandering homeless, only there's no Warlord to save us!" 02992_ T-07 Excavator is excavating. 03012_ ALERT: Infestation in the mines, dispatching Demolisher response squad. 03031_ 5L-KAT destroyed. 03037_ as-84857 destroyed. 03037_ Destroyed Asb. F-torch. 03037_ as-30140 destroyed. 03037_ as-79134 destroyed. 03040_ Destroyed Asb. Hover Unit. Map ----- +----------------------------------------------------+ | ?????????????????????????????????????????????????? | | ?????????????????????????????????????????????????? | | ?????????????????????????????????????????????????? | | ?????????????????????????????????????????????????? | | ?????????????????????????????????????????????????? | | ?????????????????????????????????????????????????? | | ?????????????????????????????????????????????????? | | ?????????????????????????????????????????????????? | | ???????????????????? ????????????????????????????? | | ???????????????????" ????????????????????????????? | | ??????????????# """ ????????????????????????????? | | ??????????????# """ ????????????????????????????? | | ?????????????## #???????????????????????????? | | ????????????## #???????????????????????????? | | ????????????? ###?????????????????????????? | | ?????????????? ##????????????????????????? | | ??????????????? ##???????????????????????? | | ????????????????# = ##??????????????????????? | | ?????????????????# % #??????????????????????? | | ?????????????####?# #??????????????????????? | | ????????????## ## a ###????????????????????? | | ?????????#### #????????????????????? | | ????????## % #????????????????????? | | ????????# ##???????????????????? | | ???????????##### a a ##?###??????????????? | | ???????????????## # @ ## ##### #????????? | | ???????????????## ## # #????????? | | ???????????????# #???## #????????? | | ??????????????# #????# #####????????? | | ?????????????# ##????## ##????????????? | | ?????????????# #??????# #?????????????? | | ?????????????## ##??????## ######?????????????? | | ??????????????## ?????????# ##??????????????????? | | ???????????????# ??????#### #???????????????????? | | ???????????????# ??????# #???????????????????? | | ???????????????# ??????# #???????????????????? | | ???????????????# ??????# ####???????????????????? | | ??????????????? ??????# #??????????????????????? | | ???????????????##??????# #??????????????????????? | | ???????????????????????# #??????????????????????? | | ???????????????????????# #?####?????????????????? | | ???????????????????????# ### ##????????????????? | | ??????????????????????## ## #????????????????? | | ?????????????????????## #????????????????? | | ?????????????????????# ! ##????????????????? | | ????????????????????#= =##?????????????????? | | ????????????????????# ##??????????????????? | | ????????????????????## ###???????????????????? | | ?????????????????????### ##?????????????????????? | | ???????????????????????####??????????????????????? | +----------------------------------------------------+ Best States ------------- Heat Dissipation 25 Energy Generation 14 Energy Capacity 275 Matter Stores 300 Matter Capacity 300 Sight Range 16 Terrain Scan Density 10 Armor Coverage 150 Evasion (%) 40 Recoil Reduction 2 Item Schematics ----------------- Huge Storage Unit | -10/Materials | Hacked Robot Schematics ------------------ M-13 Machinist | -10/Materials | Hacked Fabricated ------------ Nothing Alien Tech Used ----------------- None Achievements -------------- None Challenges ------------ None Game ------ Seed ClaymoresScatterPlating Manual? 0 Play Time 00:11:45 Cumulative 283.8 hours Start 2024.03.12 @ 14:23:31 End 2024.03.13 @ 21:12:52 Sessions 4 Manual Loads 0 Difficulty Rogue Special Mode None Game No. 192 Rogue 192 Adventurer 0 Explorer 0 Win Type - Total 13 Types 9/1/1/1/0/0/0/1/0 Lore% 70 Gallery% 80 Achievement% 71 Wizard Run 0 Options --------- Layout 0 ASCII 0 Keyboard 1 Movement Numpad Keybinds 0 Fullscreen 2 Font 18/SmallcapsGlow Map View 76x50 Zoom Use 0% Tactical HUD 1 Map Filters NONE Filters NONE Steam 1 RUN: 0d443970-0e8e-497c-9f9c-e25ff8e90a91